[Event "EYCC Open-U14 2019"]
[Site "Bratislava"]
[Date "2019.08.10"]
[Round "9.1"]
[White "Kostolansky, Sebastian Lukas"]
[Black "Popov, Konstantin"]
[Result "1-0"]
[ECO "B12"]
[WhiteElo "2406"]
[BlackElo "2367"]
[Annotator "NA"]
[PlyCount "61"]
[EventDate "2019.08.02"]
[EventType "swiss"]
[EventCountry "SVK"]
[SourceTitle "playchess.com"]
[Source "ChessBase"]
[SourceQuality "1"]
[TimeControl "40/5400+30:1800+30"]

1. e4 {[%emt 0:00:00]} c6 {[%emt 0:00:00]} 2. d4 {[%emt 0:00:00]} d5 {[%emt 0:00:00]} 3. e5 {[%emt 0:00:00]} Bf5 {[%emt 0:00:25]} 4. h4 {[%emt 0:10:12]} h5 {[%emt 0:01:59]} 5. c4 {[%emt 0:01:34]} e6 {[%emt 0:01:17]} 6. Nc3 {[%emt 0:00:43]} Nd7 {[%emt 0:00:36]} 7. Nge2 {[%emt 0:07:46]} Ne7 {[%emt 0:04:40]} 8. Ng3 {[%emt 0:02:52]} Bg6 {[%emt 0:02:42]} 9. Bg5 {[%emt 0:02:07]} Qb6 {[%emt 0:08:05]} 10. Qd2 {[%emt 0:28:11]} Nf5 {[%emt 0:10:06]} 11. Nxf5 {[%emt 0:02:15]} Bxf5 {[%emt 0:00:05]} 12. cxd5 {[%emt 0:02:18]} cxd5 {[%emt 0:00:59]} 13. a3 {[%emt 0:06:12]} a6 {[%emt 0:15:39]} 14. Be2 {[%emt 0:01:57]} Bg4 {[%emt 0:09:09]} 15. O-O {[%emt 0:04:32]} Bxe2 {[%emt 0:12:41]} 16. Nxe2 {[%emt 0:00:06]} Rc8 {[%emt 0:09:29]} 17. Rac1 {[%emt 0:02:01]} Rc6 {[%emt 0:02:30]} 18. Rc3 {[%emt 0:06:27]} Nb8 {[%emt 0:03:21]} 19. Rf3 {[%emt 0:02:40]} Qc7 {[%emt 0:00:14]} 20. Nf4 {[%emt 0:05:35]} Nd7 {[%emt 0:09:27]} 21. Qd3 {[%emt 0:01:22]} b5 {[%emt 0:02:08]} 22. Re1 {[%emt 0:03:32]} Qb6 {[%emt 0:04:22]} 23. Nxd5 {[%emt 0:01:46]} Qb7 {[%emt 0:00:57]} 24. Nf4 {[%emt 0:00:46]} Nb6 {[%emt 0:00:30]} 25. d5 {[%emt 0:01:15]} Nxd5 {[%emt 0:00:31]} 26. Nxd5 {[%emt 0:00:09]} exd5 {[%emt 0:00:05]} 27. e6 {[%emt 0:00:14]} f6 {[%emt 0:00:54]} 28. Qg6+ {[%emt 0:00:33]} Kd8 {[%emt 0:00:14]} 29. Bxf6+ {[%emt 0:01:30]} Be7 {[%emt 0:00:10]} 30. Bxe7+ {[%emt 0:01:43]} Qxe7 {[%emt 0:00:14]} 31. Rf7 {[%emt 0:00:05]} 1-0

[Event "EYCC Open-U14 2019"]
[Site "Bratislava"]
[Date "2019.08.10"]
[Round "9.2"]
[White "Can, Isik"]
[Black "Tsvetkov, Andrey"]
[Result "0-1"]
[ECO "B94"]
[WhiteElo "2374"]
[BlackElo "2324"]
[Annotator "NA"]
[PlyCount "82"]
[EventDate "2019.08.02"]
[EventType "swiss"]
[EventCountry "SVK"]
[SourceTitle "playchess.com"]
[Source "ChessBase"]
[SourceQuality "1"]
[TimeControl "40/5400+30:1800+30"]

1. e4 {[%emt 0:00:00]} c5 {[%emt 0:00:00]} 2. Nf3 {[%emt 0:00:00]} d6 {[%emt 0:00:00]} 3. d4 {[%emt 0:00:00]} cxd4 {[%emt 0:00:00]} 4. Nxd4 {[%emt 0:00:00]} Nf6 {[%emt 0:00:00]} 5. Nc3 {[%emt 0:00:00]} a6 {[%emt 0:00:00]} 6. Bg5 {[%emt 0:00:00]} Nbd7 {[%emt 0:00:00]} 7. Qe2 {[%emt 0:00:03]} h6 {[%emt 0:00:00]} 8. Bh4 {[%emt 0:00:06]} g6 {[%emt 0:00:00]} 9. O-O-O {[%emt 0:00:08]} e5 {[%emt 0:03:42]} 10. Nb3 {[%emt 0:00:03]} Be7 {[%emt 0:00:09]} 11. Qd2 {[%emt 0:00:05]} Qc7 {[%emt 0:07:35]} 12. Kb1 {[%emt 0:00:14]} b5 {[%emt 0:09:56]} 13. a3 {[%emt 0:00:03]} Bb7 {[%emt 0:06:01]} 14. Bd3 {[%emt 0:00:03]} Kf8 {[%emt 0:00:49]} 15. f4 {[%emt 0:01:41]} Kg7 {[%emt 0:01:50]} 16. Rhf1 {[%emt 0:00:55]} Rhd8 {[%emt 0:14:39]} 17. fxe5 {[%emt 0:20:19]} dxe5 {[%emt 0:10:41]} 18. Rf3 {[%emt 0:13:38]} Nc5 {[%emt 0:25:38]} 19. Bxf6+ {[%emt 0:30:40]} Bxf6 {[%emt 0:00:19]} 20. Qf2 {[%emt 0:00:00]} Nxb3 {[%emt 0:05:33]} 21. Rxf6 {[%emt 0:00:28]} Nc5 {[%emt 0:00:53]} 22. Rf1 {[%emt 0:01:22]} Rd7 {[%emt 0:01:33]} 23. h4 {[%emt 0:07:39]} Ne6 {[%emt 0:05:31]} 24. Bxb5 {[%emt 0:01:30]} axb5 {[%emt 0:01:39]} 25. Nxb5 {[%emt 0:00:02]} Qd8 {[%emt 0:00:00]} 26. Rxf7+ {[%emt 0:03:24]} Kg8 {[%emt 0:00:01]} 27. Rxd7 {[%emt 0:13:23]} Qxd7 {[%emt 0:00:02]} 28. Qf6 {[%emt 0:00:27]} Bxe4 {[%emt 0:01:45]} 29. Qxe5 {[%emt 0:01:00]} Qc6 {[%emt 0:01:54]} 30. Rf2 {[%emt 0:01:03]} Rd8 {[%emt 0:01:56]} 31. Nc3 {[%emt 0:00:23]} Qc4 {[%emt 0:00:04]} 32. h5 {[%emt 0:02:31]} Nc5 {[%emt 0:02:08]} 33. hxg6 {[%emt 0:02:16]} Na4 {[%emt 0:00:39]} 34. Kc1 {[%emt 0:02:41]} Nxc3 {[%emt 0:01:03]} 35. Qxc3 {[%emt 0:00:11]} Qxc3 {[%emt 0:00:44]} 36. bxc3 {[%emt 0:00:04]} Kg7 {[%emt 0:00:22]} 37. g3 {[%emt 0:01:11]} Kxg6 {[%emt 0:00:36]} 38. Rf4 {[%emt 0:00:08]} Bf5 {[%emt 0:00:33]} 39. a4 {[%emt 0:00:28]} Rd5 {[%emt 0:00:39]} 40. Rd4 {[%emt 0:00:00]} Re5 {[%emt 0:00:00]} 41. Kd2 {[%emt 0:01:38]} h5 {[%emt 0:01:50]} 0-1

[Event "EYCC Open-U14 2019"]
[Site "Bratislava"]
[Date "2019.08.10"]
[Round "9.3"]
[White "Tadic, Stefan"]
[Black "Oglaza, Oskar"]
[Result "1-0"]
[ECO "B22"]
[WhiteElo "2262"]
[BlackElo "2345"]
[Annotator "NA"]
[PlyCount "79"]
[EventDate "2019.08.02"]
[EventType "swiss"]
[EventCountry "SVK"]
[SourceTitle "playchess.com"]
[Source "ChessBase"]
[SourceQuality "1"]
[TimeControl "40/5400+30:1800+30"]

1. e4 {[%emt 0:00:00]} c5 {[%emt 0:00:00]} 2. c3 {[%emt 0:00:00]} d5 {[%emt 0:00:49]} 3. exd5 {[%emt 0:00:00]} Qxd5 {[%emt 0:00:06]} 4. d4 {[%emt 0:00:00]} Nc6 {[%emt 0:00:04]} 5. Nf3 {[%emt 0:00:00]} Bf5 {[%emt 0:00:04]} 6. Be3 {[%emt 0:00:00]} cxd4 {[%emt 0:08:28]} 7. Nxd4 {[%emt 0:00:18]} Nxd4 {[%emt 0:00:15]} 8. cxd4 {[%emt 0:00:05]} a6 {[%emt 0:01:11]} 9. Nc3 {[%emt 0:00:13]} Qd7 {[%emt 0:07:41]} 10. Na4 {[%emt 0:00:16]} Rd8 {[%emt 0:23:36]} 11. Nc5 {[%emt 0:00:20]} Qd5 {[%emt 0:13:42]} 12. Be2 {[%emt 0:02:08]} e5 {[%emt 0:00:10]} 13. Qa4+ {[%emt 0:11:28]} Bd7 {[%emt 0:01:50]} 14. Nxd7 {[%emt 0:00:33]} Qxd7 {[%emt 0:00:05]} 15. Qxd7+ {[%emt 0:00:03]} Rxd7 {[%emt 0:01:28]} 16. dxe5 {[%emt 0:02:51]} Bb4+ {[%emt 0:00:08]} 17. Kf1 {[%emt 0:00:04]} Ne7 {[%emt 0:01:19]} 18. Bg4 {[%emt 0:16:36]} Rd8 {[%emt 0:03:38]} 19. a3 {[%emt 0:29:45]} Ba5 {[%emt 0:08:59]} 20. g3 {[%emt 0:08:25]} O-O {[%emt 0:02:11]} 21. Kg2 {[%emt 0:00:55]} Nd5 {[%emt 0:05:00]} 22. Bc5 {[%emt 0:01:25]} Rfe8 {[%emt 0:02:00]} 23. Bd6 {[%emt 0:06:47]} Bc7 {[%emt 0:08:03]} 24. Bxc7 {[%emt 0:02:09]} Nxc7 {[%emt 0:00:05]} 25. Rac1 {[%emt 0:00:18]} Nb5 {[%emt 0:01:05]} 26. Rhd1 {[%emt 0:01:30]} Nd4 {[%emt 0:01:21]} 27. f4 {[%emt 0:01:08]} g6 {[%emt 0:01:28]} 28. Rc7 {[%emt 0:04:44]} Nb5 {[%emt 0:01:09]} 29. Rxd8 {[%emt 0:00:28]} Rxd8 {[%emt 0:00:12]} 30. Rc8 {[%emt 0:00:06]} Rxc8 {[%emt 0:01:24]} 31. Bxc8 {[%emt 0:00:01]} a5 {[%emt 0:00:15]} 32. Bxb7 {[%emt 0:00:13]} Kf8 {[%emt 0:00:05]} 33. Kf3 {[%emt 0:01:12]} Ke7 {[%emt 0:00:14]} 34. Ke4 {[%emt 0:00:23]} Ke6 {[%emt 0:00:03]} 35. Bd5+ {[%emt 0:00:12]} Ke7 {[%emt 0:00:04]} 36. Bc4 {[%emt 0:00:19]} Nc7 {[%emt 0:00:06]} 37. Kd4 {[%emt 0:00:41]} f6 {[%emt 0:00:20]} 38. Kc5 {[%emt 0:00:42]} fxe5 {[%emt 0:00:17]} 39. fxe5 {[%emt 0:00:05]} Na8 {[%emt 0:00:10]} 40. Kc6 {[%emt 0:00:00]} 1-0

[Event "EYCC Open-U14 2019"]
[Site "Bratislava"]
[Date "2019.08.10"]
[Round "9.4"]
[White "Sokolovsky, Yahli"]
[Black "Krastev, Alexander"]
[Result "1-0"]
[ECO "B27"]
[WhiteElo "2093"]
[BlackElo "2325"]
[Annotator "NA"]
[PlyCount "157"]
[EventDate "2019.08.02"]
[EventType "swiss"]
[EventCountry "SVK"]
[SourceTitle "playchess.com"]
[Source "ChessBase"]
[SourceQuality "1"]
[TimeControl "40/5400+30:1800+30"]

1. e4 {[%emt 0:00:00]} c5 {[%emt 0:00:00]} 2. Nf3 {[%emt 0:00:00]} g6 {[%emt 0:00:00]} 3. d4 {[%emt 0:00:00]} Bg7 {[%emt 0:00:00]} 4. dxc5 {[%emt 0:01:11]} Qa5+ {[%emt 0:00:00]} 5. c3 {[%emt 0:02:44]} Qxc5 {[%emt 0:00:03]} 6. Na3 {[%emt 0:02:19]} Nf6 {[%emt 0:00:25]} 7. Bd3 {[%emt 0:17:06]} b6 {[%emt 0:19:05]} 8. O-O {[%emt 0:10:11]} Bb7 {[%emt 0:00:50]} 9. Re1 {[%emt 0:03:22]} O-O {[%emt 0:01:33]} 10. h3 {[%emt 0:04:49]} d6 {[%emt 0:03:02]} 11. Be3 {[%emt 0:02:53]} Qc8 {[%emt 0:02:31]} 12. Qc2 {[%emt 0:04:55]} Nc6 {[%emt 0:03:32]} 13. Nb5 {[%emt 0:02:31]} Nd7 {[%emt 0:01:46]} 14. Nbd4 {[%emt 0:03:00]} Nxd4 15. Nxd4 Ne5 {[%emt 0:07:18]} 16. a4 {[%emt 0:05:39]} a6 {[%emt 0:01:48]} 17. Bf1 {[%emt 0:04:54]} Qc7 {[%emt 0:03:28]} 18. f3 {[%emt 0:02:40]} Rac8 {[%emt 0:06:17]} 19. Qb3 {[%emt 0:02:10]} Nd7 {[%emt 0:01:03]} 20. Ne2 {[%emt 0:04:04]} Nc5 {[%emt 0:06:57]} 21. Qc2 {[%emt 0:01:11]} d5 {[%emt 0:01:01]} 22. exd5 {[%emt 0:01:19]} Bxd5 {[%emt 0:00:08]} 23. Nf4 {[%emt 0:02:28]} Bb3 {[%emt 0:01:37]} 24. Qf2 {[%emt 0:01:03]} Be5 {[%emt 0:04:03]} 25. g3 {[%emt 0:01:38]} Bd6 {[%emt 0:03:39]} 26. Kg2 {[%emt 0:01:32]} Rfd8 {[%emt 0:03:42]} 27. Nd3 {[%emt 0:03:28]} Qb7 {[%emt 0:18:56]} 28. Nxc5 {[%emt 0:04:35]} bxc5 {[%emt 0:00:04]} 29. Kh2 {[%emt 0:06:00]} Qc6 {[%emt 0:04:24]} 30. a5 {[%emt 0:01:35]} Bd5 {[%emt 0:01:08]} 31. Bg2 {[%emt 0:01:45]} Rb8 {[%emt 0:00:03]} 32. Re2 {[%emt 0:00:42]} Rb3 {[%emt 0:00:42]} 33. Rd2 {[%emt 0:01:30]} Rdb8 {[%emt 0:00:57]} 34. Rad1 {[%emt 0:01:45]} Be6 {[%emt 0:00:05]} 35. Bf1 {[%emt 0:00:48]} h5 {[%emt 0:01:27]} 36. f4 {[%emt 0:00:20]} Qc8 {[%emt 0:03:05]} 37. Qg2 {[%emt 0:01:36]} Qc7 {[%emt 0:02:50]} 38. Bxa6 {[%emt 0:00:25]} Qxa5 {[%emt 0:00:03]} 39. Bd3 {[%emt 0:00:21]} Qc7 {[%emt 0:01:16]} 40. f5 {[%emt 0:00:00]} Bxf5 {[%emt 0:00:00]} 41. Bxf5 {[%emt 0:03:40]} gxf5 {[%emt 0:00:42]} 42. Bf4 {[%emt 0:08:31]} Qb7 {[%emt 0:04:42]} 43. Qe2 {[%emt 0:10:25]} Rxb2 44. Qxh5 {[%emt 0:01:21]} Qd5 {[%emt 0:15:10]} 45. Qe2 {[%emt 0:08:05]} Bxf4 {[%emt 0:06:31]} 46. gxf4 {[%emt 0:00:15]} Kf8 {[%emt 0:00:10]} 47. Kg3 {[%emt 0:01:52]} Rxd2 {[%emt 0:04:41]} 48. Rxd2 {[%emt 0:00:01]} Qe6 {[%emt 0:02:39]} 49. Qxe6 {[%emt 0:00:38]} fxe6 {[%emt 0:00:04]} 50. Kf2 {[%emt 0:01:11]} Rb3 {[%emt 0:00:38]} 51. Rd3 {[%emt 0:00:26]} Rb2+ {[%emt 0:00:16]} 52. Kg3 {[%emt 0:00:31]} Re2 {[%emt 0:00:13]} 53. Kf3 {[%emt 0:00:23]} Re4 {[%emt 0:00:18]} 54. h4 {[%emt 0:00:24]} Kf7 {[%emt 0:01:35]} 55. h5 {[%emt 0:00:27]} Kf6 {[%emt 0:00:32]} 56. Kg3 {[%emt 0:00:50]} Re1 {[%emt 0:00:29]} 57. Rd8 {[%emt 0:00:20]} e5 {[%emt 0:00:25]} 58. Rf8+ {[%emt 0:00:32]} Ke6 {[%emt 0:00:10]} 59. fxe5 {[%emt 0:00:26]} Kxe5 {[%emt 0:00:16]} 60. Kg2 {[%emt 0:00:18]} Re4 61. Rc8 {[%emt 0:00:53]} Kd6 {[%emt 0:01:26]} 62. Kh3 {[%emt 0:00:31]} Re3+ {[%emt 0:00:39]} 63. Kh4 {[%emt 0:00:17]} Rxc3 {[%emt 0:00:13]} 64. h6 {[%emt 0:00:22]} Rc1 {[%emt 0:00:09]} 65. Kg5 {[%emt 0:00:04]} Rh1 {[%emt 0:01:01]} 66. Kg6 {[%emt 0:00:32]} f4 {[%emt 0:00:41]} 67. h7 {[%emt 0:00:17]} Ke5 {[%emt 0:00:28]} 68. Rxc5+ {[%emt 0:00:46]} Ke4 {[%emt 0:00:28]} 69. Rh5 {[%emt 0:00:11]} Rxh5 {[%emt 0:00:09]} 70. Kxh5 {[%emt 0:00:05]} f3 {[%emt 0:00:12]} 71. h8=Q {[%emt 0:00:05]} f2 {[%emt 0:00:05]} 72. Qa8+ {[%emt 0:01:27]} Ke3 {[%emt 0:00:09]} 73. Qa6 {[%emt 0:00:17]} Kf3 {[%emt 0:00:10]} 74. Qf1 {[%emt 0:01:05]} e5 {[%emt 0:00:03]} 75. Kh4 {[%emt 0:00:27]} e4 {[%emt 0:00:03]} 76. Kh3 {[%emt 0:00:20]} e3 {[%emt 0:00:12]} 77. Qh1+ {[%emt 0:00:19]} Ke2 {[%emt 0:00:16]} 78. Kg2 {[%emt 0:00:06]} Kd2 {[%emt 0:00:07]} 79. Qf1 {[%emt 0:00:15]} 1-0

[Event "EYCC Open-U14 2019"]
[Site "Bratislava"]
[Date "2019.08.10"]
[Round "9.5"]
[White "Makoveev, Ilya"]
[Black "Biletskiy, Danylo"]
[Result "1-0"]
[ECO "E73"]
[WhiteElo "2288"]
[BlackElo "2105"]
[Annotator "NA"]
[PlyCount "47"]
[EventDate "2019.08.02"]
[EventType "swiss"]
[EventCountry "SVK"]
[SourceTitle "playchess.com"]
[Source "ChessBase"]
[SourceQuality "1"]
[TimeControl "40/5400+30:1800+30"]

1. d4 {[%emt 0:00:00]} Nf6 {[%emt 0:00:00]} 2. c4 {[%emt 0:00:30]} g6 {[%emt 0:00:00]} 3. Nc3 {[%emt 0:00:30]} Bg7 {[%emt 0:00:00]} 4. e4 {[%emt 0:01:00]} d6 {[%emt 0:00:18]} 5. Be2 {[%emt 0:02:30]} O-O {[%emt 0:00:39]} 6. Bg5 {[%emt 0:01:00]} c5 {[%emt 0:08:01]} 7. d5 {[%emt 0:02:16]} e6 {[%emt 0:04:12]} 8. Nf3 {[%emt 0:01:43]} exd5 {[%emt 0:00:11]} 9. cxd5 {[%emt 0:01:48]} Bg4 {[%emt 0:03:30]} 10. Nd2 {[%emt 0:06:32]} Bxe2 {[%emt 0:00:25]} 11. Qxe2 {[%emt 0:00:02]} a6 {[%emt 0:00:44]} 12. a4 {[%emt 0:00:20]} h6 {[%emt 0:03:19]} 13. Bh4 {[%emt 0:02:55]} Nbd7 {[%emt 0:09:12]} 14. O-O {[%emt 0:01:07]} Rb8 {[%emt 0:02:29]} 15. a5 {[%emt 0:18:26]} g5 {[%emt 0:21:24]} 16. Bg3 {[%emt 0:01:04]} Qe7 {[%emt 0:00:01]} 17. Nc4 {[%emt 0:03:36]} Ne8 {[%emt 0:00:02]} 18. Ne3 {[%emt 0:01:52]} Ne5 {[%emt 0:05:19]} 19. Nf5 {[%emt 0:07:50]} Qf6 {[%emt 0:00:02]} 20. f4 {[%emt 0:01:40]} gxf4 {[%emt 0:00:02]} 21. Bh4 {[%emt 0:00:27]} f3 {[%emt 0:00:16]} 22. Qc2 {[%emt 0:00:30]} fxg2 {[%emt 0:01:57]} 23. Qxg2 {[%emt 0:00:31]} Nf3+ {[%emt 0:03:49]} 24. Rxf3 {[%emt 0:00:06]} 1-0

[Event "EYCC Open-U14 2019"]
[Site "Bratislava"]
[Date "2019.08.10"]
[Round "9.6"]
[White "Antonica, Dragos-Andrei"]
[Black "Mitusov, Semen"]
[Result "0-1"]
[ECO "A06"]
[WhiteElo "2124"]
[BlackElo "2199"]
[Annotator "NA"]
[PlyCount "90"]
[EventDate "2019.08.02"]
[EventType "swiss"]
[EventCountry "SVK"]
[SourceTitle "playchess.com"]
[Source "ChessBase"]
[SourceQuality "1"]
[TimeControl "40/5400+30:1800+30"]

1. Nf3 {[%emt 0:00:00]} d5 {[%emt 0:00:01]} 2. e3 {[%emt 0:00:00]} Nf6 {[%emt 0:00:28]} 3. c4 {[%emt 0:00:13]} dxc4 {[%emt 0:06:59]} 4. Bxc4 {[%emt 0:00:57]} a6 {[%emt 0:01:02]} 5. O-O {[%emt 0:06:50]} e6 {[%emt 0:01:47]} 6. b3 {[%emt 0:00:17]} c5 {[%emt 0:07:57]} 7. Bb2 {[%emt 0:01:03]} Bd6 {[%emt 0:01:59]} 8. e4 {[%emt 0:18:00]} Nxe4 {[%emt 0:05:17]} 9. Bxg7 {[%emt 0:11:53]} Rg8 {[%emt 0:00:12]} 10. Bb2 {[%emt 0:01:51]} b5 {[%emt 0:04:50]} 11. Be2 {[%emt 0:01:09]} Bb7 {[%emt 0:02:37]} 12. d3 {[%emt 0:25:26]} Ng5 {[%emt 0:07:20]} 13. Nbd2 {[%emt 0:06:09]} Qc7 {[%emt 0:10:27]} 14. Kh1 {[%emt 0:03:59]} Qe7 {[%emt 0:11:25]} 15. Qc2 {[%emt 0:05:13]} f5 {[%emt 0:13:17]} 16. d4 {[%emt 0:08:08]} cxd4 {[%emt 0:02:12]} 17. Bxd4 {[%emt 0:00:41]} Nc6 {[%emt 0:00:16]} 18. Be3 {[%emt 0:03:17]} h6 {[%emt 0:05:45]} 19. Rae1 {[%emt 0:01:02]} Nb4 {[%emt 0:01:10]} 20. Qb2 {[%emt 0:01:12]} Nd5 {[%emt 0:01:05]} 21. Bd3 {[%emt 0:00:57]} Nxe3 {[%emt 0:06:12]} 22. fxe3 {[%emt 0:01:01]} O-O-O {[%emt 0:03:55]} 23. Qc3+ {[%emt 0:00:46]} Kb8 {[%emt 0:00:18]} 24. e4 {[%emt 0:00:23]} Bb4 {[%emt 0:00:40]} 25. Qc2 {[%emt 0:00:52]} fxe4 {[%emt 0:01:11]} 26. Bxe4 {[%emt 0:00:36]} Nxe4 {[%emt 0:00:28]} 27. Rxe4 {[%emt 0:00:21]} Bxe4 {[%emt 0:01:03]} 28. Nxe4 {[%emt 0:00:05]} Qg7 {[%emt 0:00:38]} 29. Qf2 {[%emt 0:00:38]} Qb7 {[%emt 0:00:38]} 30. Qe2 {[%emt 0:00:20]} Rgf8 {[%emt 0:01:22]} 31. Qe3 {[%emt 0:00:37]} Rc8 {[%emt 0:00:55]} 32. Qd4 {[%emt 0:00:20]} a5 {[%emt 0:00:57]} 33. h3 {[%emt 0:00:26]} Ka8 {[%emt 0:00:37]} 34. Qe3 {[%emt 0:00:58]} Rfd8 {[%emt 0:00:37]} 35. Ne5 {[%emt 0:00:39]} Rf8 {[%emt 0:00:01]} 36. Nf3 {[%emt 0:00:42]} Qd5 {[%emt 0:00:58]} 37. a4 {[%emt 0:00:34]} bxa4 {[%emt 0:00:29]} 38. bxa4 {[%emt 0:00:15]} Rc4 {[%emt 0:00:12]} 39. Ng3 {[%emt 0:01:01]} h5 {[%emt 0:00:00]} 40. Ne2 {[%emt 0:00:00]} Bc5 {[%emt 0:00:00]} 41. Qh6 {[%emt 0:04:21]} Bd6 {[%emt 0:06:20]} 42. Qh7 {[%emt 0:03:49]} Rb8 {[%emt 0:02:57]} 43. Re1 {[%emt 0:02:10]} Re4 {[%emt 0:02:21]} 44. Nd2 {[%emt 0:04:03]} Re3 {[%emt 0:00:38]} 45. Nf1 {[%emt 0:02:45]} Rxh3+ {[%emt 0:00:20]} 0-1

[Event "EYCC Open-U14 2019"]
[Site "Bratislava"]
[Date "2019.08.10"]
[Round "9.7"]
[White "Pasztor, Balazs"]
[Black "Kirillov, Dmitry"]
[Result "0-1"]
[ECO "B40"]
[WhiteElo "2140"]
[BlackElo "2244"]
[Annotator "NA"]
[PlyCount "62"]
[EventDate "2019.08.02"]
[EventType "swiss"]
[EventCountry "SVK"]
[SourceTitle "playchess.com"]
[Source "ChessBase"]
[SourceQuality "1"]
[TimeControl "40/5400+30:1800+30"]

1. e4 {[%emt 0:00:00]} c5 {[%emt 0:00:00]} 2. Nf3 {[%emt 0:00:00]} e6 {[%emt 0:00:00]} 3. d4 {[%emt 0:00:02]} cxd4 {[%emt 0:00:00]} 4. Nxd4 {[%emt 0:00:07]} Nf6 {[%emt 0:00:00]} 5. Nc3 {[%emt 0:00:18]} Nc6 {[%emt 0:00:00]} 6. Ndb5 {[%emt 0:00:20]} Bb4 {[%emt 0:00:04]} 7. a3 {[%emt 0:00:15]} Bxc3+ {[%emt 0:00:07]} 8. Nxc3 {[%emt 0:00:06]} d5 {[%emt 0:00:04]} 9. exd5 {[%emt 0:00:11]} exd5 {[%emt 0:00:04]} 10. Bd3 {[%emt 0:00:12]} O-O {[%emt 0:00:06]} 11. O-O {[%emt 0:00:07]} d4 {[%emt 0:00:06]} 12. Ne2 {[%emt 0:00:06]} Bg4 {[%emt 0:00:04]} 13. f3 {[%emt 0:01:05]} Bh5 {[%emt 0:00:04]} 14. Bg5 {[%emt 0:01:25]} Qd6 {[%emt 0:01:53]} 15. Qd2 {[%emt 0:10:53]} Bg6 {[%emt 0:08:18]} 16. Rad1 {[%emt 0:03:45]} Rad8 {[%emt 0:02:46]} 17. Bxg6 {[%emt 0:05:13]} hxg6 {[%emt 0:00:55]} 18. Be3 {[%emt 0:05:20]} Nd5 {[%emt 0:28:50]} 19. Bf2 {[%emt 0:09:19]} Rfe8 {[%emt 0:03:52]} 20. g3 {[%emt 0:07:52]} Qc7 {[%emt 0:07:19]} 21. Kg2 {[%emt 0:09:02]} Ne5 {[%emt 0:11:11]} 22. b3 {[%emt 0:06:24]} Ne3+ {[%emt 0:03:28]} 23. Bxe3 {[%emt 0:00:08]} dxe3 {[%emt 0:00:05]} 24. Qc1 {[%emt 0:05:46]} Rxd1 {[%emt 0:02:44]} 25. Rxd1 {[%emt 0:11:36]} Nxf3 {[%emt 0:00:48]} 26. Kxf3 {[%emt 0:07:10]} Qc6+ {[%emt 0:00:49]} 27. Kg4 {[%emt 0:00:09]} Qe6+ {[%emt 0:00:57]} 28. Kh4 {[%emt 0:00:19]} g5+ {[%emt 0:01:41]} 29. Kxg5 {[%emt 0:00:50]} f6+ {[%emt 0:00:16]} 30. Kh4 {[%emt 0:00:56]} g5+ {[%emt 0:00:09]} 31. Kh5 {[%emt 0:00:12]} Kg7 {[%emt 0:00:05]} 0-1

[Event "EYCC Open-U14 2019"]
[Site "Bratislava"]
[Date "2019.08.10"]
[Round "9.8"]
[White "Papadiamandis, Elliot"]
[Black "Chyzy, Jakub"]
[Result "0-1"]
[ECO "C06"]
[WhiteElo "2202"]
[BlackElo "2093"]
[Annotator "NA"]
[PlyCount "128"]
[EventDate "2019.08.02"]
[EventType "swiss"]
[EventCountry "SVK"]
[SourceTitle "playchess.com"]
[Source "ChessBase"]
[SourceQuality "1"]
[TimeControl "40/5400+30:1800+30"]

1. e4 {[%emt 0:00:00]} e6 {[%emt 0:00:00]} 2. d4 {[%emt 0:00:00]} d5 {[%emt 0:00:00]} 3. Nd2 {[%emt 0:00:29]} Nf6 {[%emt 0:00:00]} 4. e5 {[%emt 0:00:28]} Nfd7 {[%emt 0:00:00]} 5. Bd3 {[%emt 0:00:45]} c5 {[%emt 0:00:00]} 6. c3 {[%emt 0:00:21]} Nc6 {[%emt 0:00:00]} 7. Ne2 {[%emt 0:00:43]} cxd4 {[%emt 0:00:10]} 8. cxd4 {[%emt 0:00:30]} f6 {[%emt 0:00:09]} 9. exf6 {[%emt 0:00:33]} Qxf6 {[%emt 0:00:09]} 10. Nf3 {[%emt 0:00:58]} h6 {[%emt 0:00:13]} 11. O-O {[%emt 0:01:29]} Bd6 {[%emt 0:00:13]} 12. Be3 {[%emt 0:02:20]} O-O {[%emt 0:00:10]} 13. Bc2 {[%emt 0:01:22]} Rd8 {[%emt 0:00:15]} 14. Bb3 {[%emt 0:10:19]} Nf8 {[%emt 0:00:43]} 15. Qd2 {[%emt 0:00:25]} Bd7 {[%emt 0:00:38]} 16. Bf4 {[%emt 0:01:07]} Be8 {[%emt 0:01:17]} 17. Bxd6 {[%emt 0:02:06]} Rxd6 {[%emt 0:00:02]} 18. Qf4 {[%emt 0:09:14]} Qxf4 {[%emt 0:08:11]} 19. Nxf4 {[%emt 0:00:06]} g5 {[%emt 0:01:38]} 20. Nd3 {[%emt 0:05:33]} Bh5 {[%emt 0:05:53]} 21. Nde5 {[%emt 0:03:15]} Bxf3 {[%emt 0:09:11]} 22. Nxf3 {[%emt 0:01:12]} Ng6 {[%emt 0:00:10]} 23. Rfe1 {[%emt 0:07:43]} Rf8 {[%emt 0:01:20]} 24. h3 {[%emt 0:02:35]} Nh4 {[%emt 0:13:46]} 25. Nxh4 {[%emt 0:04:29]} gxh4 {[%emt 0:00:06]} 26. Red1 {[%emt 0:02:39]} Rf4 {[%emt 0:00:22]} 27. Rac1 {[%emt 0:00:38]} Rd8 {[%emt 0:08:03]} 28. Rd3 {[%emt 0:06:18]} Rdf8 {[%emt 0:07:55]} 29. f3 {[%emt 0:04:41]} Rxd4 {[%emt 0:08:32]} 30. Re3 {[%emt 0:06:14]} Kf7 {[%emt 0:01:26]} 31. Rce1 {[%emt 0:01:40]} Re8 {[%emt 0:05:04]} 32. a3 {[%emt 0:05:08]} Kf6 {[%emt 0:03:19]} 33. Kf2 {[%emt 0:01:04]} Rd2+ {[%emt 0:11:19]} 34. R1e2 {[%emt 0:02:10]} Rxe2+ {[%emt 0:00:15]} 35. Kxe2 {[%emt 0:00:55]} Nd4+ {[%emt 0:00:07]} 36. Kf2 {[%emt 0:00:44]} Rc8 {[%emt 0:00:46]} 37. Rd3 {[%emt 0:02:36]} Ke5 {[%emt 0:01:39]} 38. Bd1 {[%emt 0:03:25]} Rc1 {[%emt 0:03:22]} 39. Rd2 {[%emt 0:01:44]} Nf5 {[%emt 0:07:35]} 40. Re2+ {[%emt 0:00:00]} Kf4 {[%emt 0:00:00]} 41. Rd2 {[%emt 0:06:01]} e5 {[%emt 0:02:32]} 42. Bb3 {[%emt 0:03:32]} d4 {[%emt 0:06:57]} 43. Bc2 {[%emt 0:04:43]} Ne3 {[%emt 0:02:29]} 44. Bd3 {[%emt 0:01:02]} Rd1 {[%emt 0:02:16]} 45. Rxd1 {[%emt 0:01:29]} Nxd1+ {[%emt 0:00:05]} 46. Ke2 {[%emt 0:00:59]} Nxb2 {[%emt 0:00:11]} 47. Be4 {[%emt 0:00:17]} b6 {[%emt 0:00:41]} 48. Bc6 {[%emt 0:01:12]} Nc4 {[%emt 0:01:01]} 49. a4 {[%emt 0:00:15]} Nd6 {[%emt 0:02:14]} 50. Bd5 {[%emt 0:00:40]} a6 {[%emt 0:00:46]} 51. Kd3 {[%emt 0:01:32]} b5 {[%emt 0:02:11]} 52. a5 {[%emt 0:02:06]} Nc4 {[%emt 0:02:21]} 53. Bb7 {[%emt 0:01:24]} Nxa5 {[%emt 0:00:05]} 54. Bxa6 {[%emt 0:00:33]} b4 {[%emt 0:01:36]} 55. Ke2 {[%emt 0:03:21]} Nb3 {[%emt 0:00:36]} 56. Bc4 {[%emt 0:00:41]} Nc5 {[%emt 0:00:11]} 57. Kd2 {[%emt 0:02:03]} Kg3 {[%emt 0:01:18]} 58. Bd5 {[%emt 0:00:01]} Kf2 {[%emt 0:00:22]} 59. Bc6 {[%emt 0:01:10]} b3 {[%emt 0:00:15]} 60. Bd5 {[%emt 0:00:49]} d3 {[%emt 0:00:18]} 61. Kc3 {[%emt 0:00:42]} b2 {[%emt 0:00:41]} 62. Ba2 {[%emt 0:00:29]} Ke1 {[%emt 0:00:42]} 63. Kxb2 {[%emt 0:00:11]} d2 {[%emt 0:00:06]} 64. Bb3 {[%emt 0:00:12]} Nxb3 {[%emt 0:00:06]} 0-1